Workbook

Sheet Sheet1
A1: ● 1/a+1/b+1/c+1/d+1/e=1
B3: a | C3: b | D3: c | E3: d | F3: e | H3: m=abcde | J3: Sum(k~o) | K3: m/a | L3: m/b | M3: m/c | N3: m/d | O3: m/e
A4: 1 | B4: 2 | C4: 3 | D4: 7 | E4: 54 | F4: 189 | H4: =B4*C4*D4*E4*F4 -> 428652 | J4: =K4+L4+M4+N4+O4 -> 428652 | K4: =C4*D4*E4*F4 -> 214326 | L4: =B4*D4*E4*F4 -> 142884 | M4: =B4*C4*E4*F4 -> 61236 | N4: =B4*C4*D4*F4 -> 7938 | O4: =B4*C4*D4*E4 -> 2268
A5: 2 | B5: 2 | C5: 3 | D5: 7 | E5: 56 | F5: 168 | H5: =B5*C5*D5*E5*F5 -> 395136 | J5: =K5+L5+M5+N5+O5 -> 395136 | K5: =C5*D5*E5*F5 -> 197568 | L5: =B5*D5*E5*F5 -> 131712 | M5: =B5*C5*E5*F5 -> 56448 | N5: =B5*C5*D5*F5 -> 7056 | O5: =B5*C5*D5*E5 -> 2352
A6: 3 | B6: 2 | C6: 3 | D6: 7 | E6: 60 | F6: 140 | H6: 352800 | J6: 352800 | K6: 176400 | L6: 117600 | M6: 50400 | N6: 5880 | O6: 2520
A7: 4 | B7: 2 | C7: 3 | D7: 7 | E7: 63 | F7: 126 | H7: 333396 | J7: 333396 | K7: 166698 | L7: 111132 | M7: 47628 | N7: 5292 | O7: 2646
A8: 5 | B8: 2 | C8: 3 | D8: 7 | E8: 70 | F8: 105 | H8: 308700 | J8: 308700 | K8: 154350 | L8: 102900 | M8: 44100 | N8: 4410 | O8: 2940
A9: 6 | B9: 2 | C9: 3 | D9: 7 | E9: 78 | F9: 91 | H9: 298116 | J9: 298116 | K9: 149058 | L9: 99372 | M9: 42588 | N9: 3822 | O9: 3276
A10: 7 | B10: 2 | C10: 3 | D10: 8 | E10: 28 | F10: 168 | H10: 225792 | J10: 225792 | K10: 112896 | L10: 75264 | M10: 28224 | N10: 8064 | O10: 1344
A11: 8 | B11: 2 | C11: 3 | D11: 8 | E11: 30 | F11: 120 | H11: 172800 | J11: 172800 | K11: 86400 | L11: 57600 | M11: 21600 | N11: 5760 | O11: 1440
A12: 9 | B12: 2 | C12: 3 | D12: 8 | E12: 32 | F12: 96 | H12: 147456 | J12: 147456 | K12: 73728 | L12: 49152 | M12: 18432 | N12: 4608 | O12: 1536
A13: 10 | B13: 2 | C13: 3 | D13: 8 | E13: 33 | F13: 88 | H13: 139392 | J13: 139392 | K13: 69696 | L13: 46464 | M13: 17424 | N13: 4224 | O13: 1584
A14: 11 | B14: 2 | C14: 3 | D14: 8 | E14: 36 | F14: 72 | H14: 124416 | J14: 124416 | K14: 62208 | L14: 41472 | M14: 15552 | N14: 3456 | O14: 1728
A15: 12 | B15: 2 | C15: 3 | D15: 8 | E15: 40 | F15: 60 | H15: 115200 | J15: 115200 | K15: 57600 | L15: 38400 | M15: 14400 | N15: 2880 | O15: 1920
A16: 13 | B16: 2 | C16: 3 | D16: 8 | E16: 42 | F16: 56 | H16: 112896 | J16: 112896 | K16: 56448 | L16: 37632 | M16: 14112 | N16: 2688 | O16: 2016
A17: 14 | B17: 2 | C17: 3 | D17: 9 | E17: 20 | F17: 180 | H17: 194400 | J17: 194400 | K17: 97200 | L17: 64800 | M17: 21600 | N17: 9720 | O17: 1080
A18: 15 | B18: 2 | C18: 3 | D18: 9 | E18: 21 | F18: 126 | H18: 142884 | J18: 142884 | K18: 71442 | L18: 47628 | M18: 15876 | N18: 6804 | O18: 1134
A19: 16 | B19: 2 | C19: 3 | D19: 9 | E19: 22 | F19: 99 | H19: 117612 | J19: 117612 | K19: 58806 | L19: 39204 | M19: 13068 | N19: 5346 | O19: 1188
A20: 17 | B20: 2 | C20: 3 | D20: 9 | E20: 24 | F20: 72 | H20: 93312 | J20: 93312 | K20: 46656 | L20: 31104 | M20: 10368 | N20: 3888 | O20: 1296
A21: 18 | B21: 2 | C21: 3 | D21: 9 | E21: 27 | F21: 54 | H21: 78732 | J21: 78732 | K21: 39366 | L21: 26244 | M21: 8748 | N21: 2916 | O21: 1458
A22: 19 | B22: 2 | C22: 3 | D22: 9 | E22: 30 | F22: 45 | H22: 72900 | J22: 72900 | K22: 36450 | L22: 24300 | M22: 8100 | N22: 2430 | O22: 1620
A23: 20 | B23: 2 | C23: 3 | D23: 10 | E23: 18 | F23: 90 | H23: 97200 | J23: 97200 | K23: 48600 | L23: 32400 | M23: 9720 | N23: 5400 | O23: 1080
A24: 21 | B24: 2 | C24: 3 | D24: 10 | E24: 20 | F24: 60 | H24: 72000 | J24: 72000 | K24: 36000 | L24: 24000 | M24: 7200 | N24: 3600 | O24: 1200
A25: 22 | B25: 2 | C25: 3 | D25: 10 | E25: 24 | F25: 40 | H25: 57600 | J25: 57600 | K25: 28800 | L25: 19200 | M25: 5760 | N25: 2400 | O25: 1440
A26: 23 | B26: 2 | C26: 3 | D26: 11 | E26: 15 | F26: 110 | H26: 108900 | J26: 108900 | K26: 54450 | L26: 36300 | M26: 9900 | N26: 7260 | O26: 990
A27: 24 | B27: 2 | C27: 3 | D27: 11 | E27: 22 | F27: 33 | H27: 47916 | J27: 47916 | K27: 23958 | L27: 15972 | M27: 4356 | N27: 2178 | O27: 1452
A28: 25 | B28: 2 | C28: 3 | D28: 12 | E28: 13 | F28: 156 | H28: 146016 | J28: 146016 | K28: 73008 | L28: 48672 | M28: 12168 | N28: 11232 | O28: 936
A29: 26 | B29: 2 | C29: 3 | D29: 12 | E29: 14 | F29: 84 | H29: 84672 | J29: 84672 | K29: 42336 | L29: 28224 | M29: 7056 | N29: 6048 | O29: 1008
A30: 27 | B30: 2 | C30: 3 | D30: 12 | E30: 15 | F30: 60 | H30: 64800 | J30: 64800 | K30: 32400 | L30: 21600 | M30: 5400 | N30: 4320 | O30: 1080
A31: 28 | B31: 2 | C31: 3 | D31: 12 | E31: 16 | F31: 48 | H31: 55296 | J31: 55296 | K31: 27648 | L31: 18432 | M31: 4608 | N31: 3456 | O31: 1152
A32: 29 | B32: 2 | C32: 3 | D32: 12 | E32: 18 | F32: 36 | H32: 46656 | J32: 46656 | K32: 23328 | L32: 15552 | M32: 3888 | N32: 2592 | O32: 1296
A33: 30 | B33: 2 | C33: 3 | D33: 12 | E33: 20 | F33: 30 | H33: 43200 | J33: 43200 | K33: 21600 | L33: 14400 | M33: 3600 | N33: 2160 | O33: 1440
A34: 31 | B34: 2 | C34: 3 | D34: 12 | E34: 21 | F34: 28 | H34: 42336 | J34: 42336 | K34: 21168 | L34: 14112 | M34: 3528 | N34: 2016 | O34: 1512
A35: 32 | B35: 2 | C35: 3 | D35: 14 | E35: 15 | F35: 35 | H35: 44100 | J35: 44100 | K35: 22050 | L35: 14700 | M35: 3150 | N35: 2940 | O35: 1260
A36: 33 | B36: 2 | C36: 4 | D36: 5 | E36: 24 | F36: 120 | H36: 115200 | J36: 115200 | K36: 57600 | L36: 28800 | M36: 23040 | N36: 4800 | O36: 960
A37: 34 | B37: 2 | C37: 4 | D37: 5 | E37: 25 | F37: 100 | H37: 100000 | J37: 100000 | K37: 50000 | L37: 25000 | M37: 20000 | N37: 4000 | O37: 1000
A38: 35 | B38: 2 | C38: 4 | D38: 5 | E38: 28 | F38: 70 | H38: 78400 | J38: 78400 | K38: 39200 | L38: 19600 | M38: 15680 | N38: 2800 | O38: 1120
A39: 36 | B39: 2 | C39: 4 | D39: 5 | E39: 30 | F39: 60 | H39: 72000 | J39: 72000 | K39: 36000 | L39: 18000 | M39: 14400 | N39: 2400 | O39: 1200
A40: 37 | B40: 2 | C40: 4 | D40: 5 | E40: 36 | F40: 45 | H40: 64800 | J40: 64800 | K40: 32400 | L40: 16200 | M40: 12960 | N40: 1800 | O40: 1440
A41: 38 | B41: 2 | C41: 4 | D41: 6 | E41: 13 | F41: 156 | H41: 97344 | J41: 97344 | K41: 48672 | L41: 24336 | M41: 16224 | N41: 7488 | O41: 624
A42: 39 | B42: 2 | C42: 4 | D42: 6 | E42: 14 | F42: 84 | H42: 56448 | J42: 56448 | K42: 28224 | L42: 14112 | M42: 9408 | N42: 4032 | O42: 672
A43: 40 | B43: 2 | C43: 4 | D43: 6 | E43: 15 | F43: 60 | H43: 43200 | J43: 43200 | K43: 21600 | L43: 10800 | M43: 7200 | N43: 2880 | O43: 720
A44: 41 | B44: 2 | C44: 4 | D44: 6 | E44: 16 | F44: 48 | H44: 36864 | J44: 36864 | K44: 18432 | L44: 9216 | M44: 6144 | N44: 2304 | O44: 768
A45: 42 | B45: 2 | C45: 4 | D45: 6 | E45: 18 | F45: 36 | H45: 31104 | J45: 31104 | K45: 15552 | L45: 7776 | M45: 5184 | N45: 1728 | O45: 864
A46: 43 | B46: 2 | C46: 4 | D46: 6 | E46: 20 | F46: 30 | H46: =B46*C46*D46*E46*F46 -> 28800 | J46: =K46+L46+M46+N46+O46 -> 28800 | K46: =C46*D46*E46*F46 -> 14400 | L46: =B46*D46*E46*F46 -> 7200 | M46: =B46*C46*E46*F46 -> 4800 | N46: =B46*C46*D46*F46 -> 1440 | O46: =B46*C46*D46*E46 -> 960
A47: 44 | B47: 2 | C47: 4 | D47: 6 | E47: 21 | F47: 28 | H47: 28224 | J47: 28224 | K47: 14112 | L47: 7056 | M47: 4704 | N47: 1344 | O47: 1008
A48: 45 | B48: 2 | C48: 4 | D48: 7 | E48: 10 | F48: 140 | H48: 78400 | J48: 78400 | K48: 39200 | L48: 19600 | M48: 11200 | N48: 7840 | O48: 560
A49: 46 | B49: 2 | C49: 4 | D49: 7 | E49: 12 | F49: 42 | H49: 28224 | J49: 28224 | K49: 14112 | L49: 7056 | M49: 4032 | N49: 2352 | O49: 672
A50: 47 | B50: 2 | C50: 4 | D50: 7 | E50: 14 | F50: 28 | H50: 21952 | J50: 21952 | K50: 10976 | L50: 5488 | M50: 3136 | N50: 1568 | O50: 784
A51: 48 | B51: 2 | C51: 4 | D51: 8 | E51: 9 | F51: 72 | H51: 41472 | J51: 41472 | K51: 20736 | L51: 10368 | M51: 5184 | N51: 4608 | O51: 576
A52: 49 | B52: 2 | C52: 4 | D52: 8 | E52: 10 | F52: 40 | H52: 25600 | J52: 25600 | K52: 12800 | L52: 6400 | M52: 3200 | N52: 2560 | O52: 640
A53: 50 | B53: 2 | C53: 4 | D53: 8 | E53: 12 | F53: 24 | H53: 18432 | J53: 18432 | K53: 9216 | L53: 4608 | M53: 2304 | N53: 1536 | O53: 768
A54: 51 | B54: 2 | C54: 4 | D54: 9 | E54: 12 | F54: 18 | H54: 15552 | J54: 15552 | K54: 7776 | L54: 3888 | M54: 1728 | N54: 1296 | O54: 864
A55: 52 | B55: 2 | C55: 4 | D55: 10 | E55: 12 | F55: 15 | H55: 14400 | J55: 14400 | K55: 7200 | L55: 3600 | M55: 1440 | N55: 1200 | O55: 960
A56: 53 | B56: 2 | C56: 5 | D56: 6 | E56: 8 | F56: 120 | H56: 57600 | J56: 57600 | K56: 28800 | L56: 11520 | M56: 9600 | N56: 7200 | O56: 480
A57: 54 | B57: 2 | C57: 5 | D57: 6 | E57: 9 | F57: 45 | H57: 24300 | J57: 24300 | K57: 12150 | L57: 4860 | M57: 4050 | N57: 2700 | O57: 540
A58: 55 | B58: 2 | C58: 5 | D58: 6 | E58: 10 | F58: 30 | H58: 18000 | J58: 18000 | K58: 9000 | L58: 3600 | M58: 3000 | N58: 1800 | O58: 600
A59: 56 | B59: 2 | C59: 5 | D59: 6 | E59: 12 | F59: 20 | H59: 14400 | J59: 14400 | K59: 7200 | L59: 2880 | M59: 2400 | N59: 1200 | O59: 720
A60: 57 | B60: 3 | C60: 4 | D60: 5 | E60: 6 | F60: 20 | H60: 7200 | J60: 7200 | K60: 2400 | L60: 1800 | M60: 1440 | N60: 1200 | O60: 360
